bitfinex/quotes_SOLUSD_20250821
["timestamp","ask_amount","ask_price","bid_price","bid_amount"]
[1755809485226,0.06,180.9,180.89,30.12854794]
[1755809485413,0.06,180.9,180.89,33.00467594]
[1755809485624,0.06,180.9,180.89,38.7982117]
[1755809486148,0.06,180.9,180.89,38.79535846]
[1755809486443,0.06,180.9,180.89,38.79417881]
[1755809487120,0.06,180.9,180.89,38.52886462]
[1755809487326,0.06,180.9,180.89,44.32240038]
[1755809487760,0.06,180.9,180.89,38.52886462]
[1755809487920,0.06,180.9,180.89,44.32240038]
[1755809488254,0.06,180.9,180.89,57.91799439]
[1755809489717,0.1,180.91,180.9,13.59559401]
[1755809490048,0.1,180.91,180.9,66.95364482]
[1755809490833,1e-08,180.91,180.9,72.74718058]
[1755809491231,1e-08,180.91,180.9,78.27509655]
[1755809492146,1e-08,180.91,180.9,66.02802503]
[1755809492323,1e-08,180.91,180.9,9.65243102]
[1755809492525,6.47353577,180.91,180.9,4.12451505]
[1755809493161,6.47353577,180.91,180.9,30.12451505]
[1755809493551,1e-08,180.91,180.9,42.10596678]
[1755809493852,1e-08,180.91,180.9,35.65243102]
[1755809494570,1e-08,180.91,180.9,42.10596678]
[1755809494869,1e-08,180.91,180.9,35.65243102]
[1755809495168,1e-08,180.91,180.9,31.52791597]
[1755809495378,0.68000001,180.91,180.9,35.64513343]
[1755809495568,6.47353577,180.91,180.9,4.11721746]
[1755809496076,1e-08,180.91,180.9,41.49866843]
[1755809496245,1e-08,180.91,180.9,15.49866843]
[1755809497252,6.47353577,180.91,180.9,9.97075246]
[1755809498168,12.55139467,180.91,180.9,9.97075246]
[1755809498460,6.47353577,180.91,180.9,4.11721746]
[1755809498648,6.47353577,180.91,180.9,16.66861146]
[1755809498973,1e-08,180.91,180.9,22.22652743]
[1755809499267,0.68000001,180.91,180.9,16.69861146]
[1755809499844,0.68000001,180.91,180.9,22.22652743]
[1755809500042,1e-08,180.91,180.9,22.22652743]
[1755809501258,1e-08,180.91,180.9,18.10930997]
[1755809501475,1e-08,180.91,180.9,22.23003786]
[1755809501677,1e-08,180.91,180.9,22.89003786]
[1755809502490,1e-08,180.91,180.9,28.68357362]
[1755809502675,1e-08,180.91,180.9,42.27916763]
[1755809504169,1e-08,180.91,180.9,36.48563187]
[1755809504373,1e-08,180.91,180.9,80.93843974]
[1755809504575,1e-08,180.91,180.9,22.22849124]
[1755809504785,0.68000001,180.91,180.9,22.22849124]
[1755809505272,0.68000001,180.91,180.9,16.70057527]
[1755809506590,6.47353577,180.91,180.9,16.70057527]
[1755809508795,6.47353577,180.91,180.9,0.03]
[1755809508796,6.75785891,180.91,180.9,0.03]
[1755809510894,6.75785891,180.91,180.9,4.15368029]
[1755809512286,138.43785891,180.91,180.9,4.15368029]
[1755809512489,142.15620039,180.91,180.9,4.15368029]
[1755809512866,147.94973615,180.91,180.9,4.15368029]
[1755809513202,147.94973615,180.91,180.9,0.03]
[1755809516578,142.15620039,180.91,180.9,0.03]
[1755809518271,10.47620039,180.91,180.9,0.03]
[1755809518580,6.07785891,180.91,180.9,0.03]
[1755809519313,6.79785891,180.91,180.9,4.15343957]
[1755809519799,5.79353577,180.91,180.9,4.85295954]
[1755809520270,1e-08,180.91,180.9,10.38087551]
[1755809520605,1e-08,180.91,180.9,16.17441127]
[1755809521889,1e-08,180.91,180.9,12.05145173]
[1755809522784,1e-08,180.91,180.9,17.90498673]
[1755809523186,1e-08,180.91,180.9,31.50058074]
[1755809528402,1e-08,180.91,180.9,25.70704498]
[1755809528606,1e-08,180.91,180.9,31.50058074]
[1755809532794,1e-08,180.91,180.9,17.20498673]
[1755809532995,1e-08,180.91,180.9,11.41145097]
[1755809533602,1e-08,180.91,180.9,17.90498673]
[1755809534686,1e-08,180.91,180.9,12.11145097]
[1755809534891,1e-08,180.91,180.9,17.90498673]
[1755809537381,1e-08,180.91,180.9,12.11145097]
[1755809537579,1e-08,180.91,180.9,17.90498673]
[1755809538008,1e-08,180.91,180.9,12.11145097]
[1755809538192,1e-08,180.91,180.9,17.90498673]
[1755809543826,1e-08,180.91,180.9,31.50058074]
[1755809544701,0.06,180.93,180.92,13.59559401]
[1755809545025,0.06,180.93,180.92,19.38912977]
[1755809545389,0.06,180.93,180.92,27.84207165]
[1755809549041,0.06,180.93,180.92,70.60207165]
[1755809553149,0.06,180.93,180.92,64.80853589]
[1755809553531,0.06,180.93,180.92,70.60207165]
[1755809554957,0.06,180.95,180.92,70.60207165]
[1755809554958,0.06,180.95,180.94,19.38912977]
[1755809555245,0.06,180.95,180.94,62.20912977]
[1755809555438,1e-08,180.95,180.94,62.91912977]
[1755809555625,1e-08,180.95,180.94,63.20345291]
[1755809556523,1e-08,180.95,180.94,68.73014684]
[1755809556727,1e-08,180.97,180.96,13.59559401]
[1755809556950,1e-08,180.97,180.96,62.28912977]
[1755809557249,1e-08,180.97,180.96,62.99912977]
[1755809558527,1e-08,180.97,180.96,68.52521288]
[1755809559267,1e-08,180.97,180.96,68.80953602]
[1755809559765,0.69,181.07,181.0,39.59559401]
[1755809559929,0.69,181.09,181.08,26.0]
[1755809560131,0.28432314,181.14,181.1,26.0]
[1755809560357,42.94,181.15,181.1,26.0]
[1755809560651,42.94,181.15,181.06,48.73353576]
[1755809560652,5.79353576,181.11,181.09,31.52211414]
[1755809560841,0.69,181.1,181.09,26.0]
[1755809562655,6.48353576,181.1,181.09,26.0]
[1755809564273,6.48353576,181.1,181.08,16.607157]
[1755809564424,0.28432314,181.14,181.08,16.607157]
[1755809564425,6.48353576,181.09,181.08,16.607157]
[1755809565152,0.69,181.09,181.08,16.607157]
[1755809565352,0.69,181.09,181.08,22.12957802]
[1755809565534,132.4,181.14,181.11,26.0]
[1755809565732,5.79353576,181.12,181.11,26.0]
[1755809566263,0.69,181.12,181.11,26.0]
[1755809566447,6.48353576,181.12,181.11,26.0]
[1755809567033,0.69,181.12,181.11,26.0]
[1755809567450,0.06,181.13,181.11,26.0]
[1755809567451,5.85353576,181.13,181.11,26.0]
[1755809567654,6.52353576,181.13,181.11,26.0]
[1755809567858,0.73,181.13,181.11,26.0]
[1755809568038,0.73,181.13,181.12,26.0]
[1755809568867,0.73,181.13,181.11,5.5213809]
[1755809569158,0.06,181.13,181.12,26.0]
[1755809569943,0.73,181.13,181.12,26.0]
[1755809570142,0.06,181.13,181.12,26.0]
[1755809570338,0.06,181.13,181.12,68.21289418]
[1755809570579,4.4008372,181.34,181.23,13.59559401]
[1755809570740,0.67,181.28,181.26,26.0]
[1755809570941,5.79353576,181.27,181.26,26.0]
[1755809571245,6.46353576,181.27,181.25,26.0]
[1755809571447,0.67,181.26,181.25,26.0]
[1755809571667,43.04,181.32,181.26,5.793536]
[1755809571835,0.28432314,181.31,181.26,5.793536]
[1755809572162,43.04,181.32,181.29,26.0]
[1755809572163,0.67,181.3,181.29,26.0]
[1755809572871,6.7478589,181.3,181.29,26.0]
[1755809574647,0.28432314,181.29,181.26,5.793536]
[1755809574881,5.79353576,181.27,181.26,5.793536]
[1755809575052,49.52353576,181.27,181.26,5.793536]
[1755809575371,43.06,181.27,181.26,5.793536]
[1755809575553,48.85353576,181.27,181.26,5.793536]
[1755809577270,43.06,181.27,181.26,11.31047299]
[1755809577475,48.85353576,181.27,181.26,5.793536]
[1755809581244,43.06,181.27,181.26,5.793536]
[1755809581466,49.52353576,181.27,181.26,5.793536]
[1755809581986,48.85353576,181.27,181.26,5.793536]
[1755809582674,0.06,181.31,181.29,26.0]
[1755809582675,5.79353576,181.3,181.29,26.0]
[1755809583450,5.79353576,181.3,181.29,42.587875]
[1755809585476,0.06,181.31,181.29,42.587875]
[1755809585477,5.85353576,181.31,181.29,42.587875]
[1755809585673,0.06,181.31,181.29,42.587875]
[1755809585851,0.06,181.31,181.29,48.10378982]
[1755809586047,5.85353576,181.31,181.29,43.287875]
[1755809586268,0.06,181.31,181.29,43.287875]
[1755809586465,0.06,181.31,181.29,42.587875]
[1755809586657,5.79353576,181.3,181.29,42.587875]
[1755809587165,0.73,181.31,181.29,42.587875]
[1755809587374,5.79353576,181.3,181.29,42.587875]
[1755809587742,5.79353576,181.3,181.29,43.287875]
[1755809588264,6.46353576,181.3,181.29,42.587875]
[1755809588775,5.79353576,181.3,181.29,42.587875]
[1755809588972,6.46353576,181.3,181.29,42.587875]
[1755809589981,5.79353576,181.3,181.29,42.587875]
[1755809590557,43.1,181.31,181.29,42.587875]
[1755809590770,5.79353576,181.3,181.29,42.587875]
[1755809591256,43.1,181.31,181.3,0.7]
[1755809591572,48.89353576,181.31,181.3,0.7]
[1755809591788,43.1,181.31,181.3,0.7]
[1755809592086,0.06,181.31,181.3,0.7]
[1755809592852,5.85353576,181.31,181.29,42.587875]
[1755809593079,5.85353576,181.31,181.29,43.287875]
[1755809593473,0.06,181.31,181.3,0.7]
[1755809594755,0.06,181.31,181.3,20.08912977]
[1755809595359,0.06,181.31,181.3,68.86484957]
[1755809596051,0.06,181.31,181.3,74.64058246]
[1755809596358,0.06,181.31,181.3,68.8470467]
[1755809596558,0.06,181.31,181.3,74.64058246]
[1755809596773,0.06,181.31,181.3,25.30272356]
[1755809597060,0.06,181.31,181.3,74.41625932]
[1755809597775,0.06,181.31,181.3,68.92484957]
[1755809597955,0.06,181.31,181.3,19.81131381]
[1755809598152,0.06,181.31,181.3,69.02484957]
[1755809598355,0.06,181.31,181.3,14.29559401]
[1755809598970,0.06,181.31,181.3,19.81131381]
[1755809599285,0.06,181.31,181.3,14.29559401]
[1755809599659,0.06,181.31,181.3,13.59559401]
[1755809599864,0.06,181.31,181.3,19.79131381]
[1755809600052,0.06,181.31,181.3,25.58484957]
[1755809601678,0.06,181.31,181.3,19.79131381]
[1755809601897,0.06,181.31,181.3,25.58484957]
[1755809602458,0.06,181.31,181.3,63.23131381]
[1755809602771,0.06,181.31,181.3,69.02484957]
[1755809602973,0.06,181.31,181.3,63.23131381]
[1755809603175,0.06,181.31,181.3,69.02484957]
[1755809605086,0.06,181.31,181.3,74.81838557]
[1755809605476,0.06,181.31,181.3,75.10270871]
[1755809606587,49.07353576,181.39,181.34,39.59559401]
[1755809606782,6.51353576,181.39,181.38,26.0]
[1755809607095,5.79353576,181.39,181.38,26.0]
[1755809607393,6.51353576,181.39,181.38,42.579624]
[1755809607572,5.79353576,181.4,181.38,42.579624]
[1755809607768,6.51353576,181.39,181.38,42.579624]
[1755809607981,0.72,181.39,181.38,42.579624]
[1755809608163,6.51353576,181.39,181.38,42.579624]
[1755809608368,0.72,181.42,181.38,42.579624]
[1755809608588,5.79353576,181.39,181.38,42.579624]
[1755809609269,0.72,181.39,181.38,42.579624]
[1755809609473,0.72,181.41,181.38,42.579624]
[1755809609768,6.51353576,181.4,181.38,42.579624]
[1755809609975,6.51353576,181.39,181.38,42.579624]
[1755809610186,0.72,181.39,181.38,42.579624]
[1755809610395,6.51353576,181.39,181.38,42.579624]
[1755809610598,5.79353576,181.39,181.38,42.579624]
[1755809610872,0.72,181.41,181.38,42.579624]
[1755809611091,5.79353576,181.39,181.38,42.579624]
[1755809611303,0.6,181.43,181.42,26.0]
[1755809611468,0.6,181.45,181.42,26.0]
[1755809611676,5.79353576,181.45,181.44,26.0]
[1755809612273,5.79353576,181.45,181.44,16.574128]
[1755809612976,0.6,181.49,181.47,26.0]
[1755809613192,6.39353576,181.48,181.47,26.0]
[1755809613614,6.39353576,181.48,181.47,16.574128]
[1755809614318,0.6,181.48,181.47,16.574128]
[1755809614488,6.39353576,181.48,181.47,16.574128]
[1755809614983,0.6,181.48,181.47,16.574128]
[1755809615216,6.39353576,181.48,181.47,16.574128]
[1755809615421,43.44,181.5,181.49,26.0]
[1755809615633,49.23353576,181.5,181.49,26.0]
[1755809616222,49.83353576,181.5,181.49,26.0]
[1755809616624,49.83353576,181.5,181.49,42.571381]
[1755809616791,44.04,181.5,181.49,42.571381]
[1755809616990,49.83353576,181.5,181.49,42.571381]
[1755809617729,49.89353576,181.5,181.49,42.571381]
[1755809617892,0.06,181.5,181.49,42.571381]
[1755809618087,5.85353576,181.5,181.49,42.571381]
[1755809624507,6.57353576,181.5,181.49,42.571381]
[1755809624715,6.57353576,181.5,181.46,26.0]
[1755809624925,5.79353576,181.47,181.46,26.0]
[1755809625634,5.79353576,181.47,181.46,42.570466]
[1755809625933,0.06,181.5,181.46,48.7612411]
[1755809626138,5.79353576,181.49,181.47,0.68]
[1755809626514,5.79353576,181.48,181.47,0.68]
[1755809627210,5.79353576,181.49,181.47,6.190372]
[1755809627411,5.79353576,181.49,181.47,48.759922]
[1755809627737,0.06,181.5,181.47,48.759922]
[1755809627738,0.06,181.5,181.47,48.079922]
[1755809628043,5.79353576,181.49,181.47,42.56955]
[1755809628216,0.06,181.5,181.47,42.56955]
[1755809628422,0.06,181.5,181.47,48.78004495]
[1755809628616,5.79353576,181.49,181.47,26.7]
[1755809628808,5.79353576,181.49,181.48,16.569551]
[1755809630006,0.06,181.5,181.48,16.569551]
[1755809630239,5.79353576,181.49,181.48,16.569551]
[1755809630418,6.45353576,181.49,181.48,16.569551]
[1755809632145,5.79353576,181.49,181.48,16.569551]
[1755809632311,5.79353576,181.49,181.45,26.7]
[1755809632610,0.06,181.5,181.47,5.793536]
[1755809632810,5.79353576,181.48,181.47,5.793536]
[1755809636526,0.72,181.5,181.47,5.793536]
[1755809636724,0.72,181.5,181.49,26.0]
[1755809637235,0.72,181.5,181.48,16.571382]
[1755809637435,0.66,181.49,181.48,16.571382]
[1755809637637,0.66,181.49,181.41,43.34]
[1755809637810,0.66,181.49,181.48,26.0]
[1755809638016,6.45353576,181.49,181.48,26.0]
[1755809638737,6.45353576,181.49,181.43,0.7]
[1755809638738,6.45353576,181.49,181.44,26.0]
[1755809639044,5.79353576,181.45,181.41,5.51208233]
[1755809639250,5.79353576,181.42,181.41,5.51208233]
[1755809639427,5.79353576,181.42,181.38,43.32]
[1755809639625,0.66,181.47,181.38,49.11353576]
[1755809639823,5.79353576,181.42,181.41,26.0]
[1755809640018,5.79353576,181.42,181.41,26.7]
[1755809640419,5.79353576,181.42,181.39,6.493536]
[1755809640626,5.79353576,181.4,181.39,6.493536]
[1755809641043,5.79353576,181.4,181.39,5.793536]
[1755809642229,0.66,181.42,181.41,26.0]
[1755809642435,6.45353576,181.42,181.41,26.0]
[1755809645340,6.45353576,181.42,181.39,5.793536]
[1755809645341,132.4,181.43,181.39,11.30647096]
[1755809645566,133.06,181.43,181.39,12.00647096]
[1755809645860,133.06,181.43,181.42,26.0]
[1755809646749,138.85353576,181.43,181.42,26.0]
[1755809647131,133.06,181.43,181.42,26.0]
[1755809647462,138.85353576,181.43,181.42,26.0]
[1755809648445,182.29353576,181.43,181.42,26.0]
[1755809650538,133.06,181.47,181.42,26.7]
[1755809650740,5.79353576,181.44,181.43,32.21176762]
[1755809650942,175.88,181.47,181.43,31.51176762]
[1755809651145,5.79353576,181.47,181.43,31.51176762]
[1755809651348,0.06,181.5,181.43,51.08472243]
[1755809651663,0.06,181.45,181.44,0.7]
[1755809651850,0.06,181.45,181.44,46.08912977]
[1755809652047,0.06,181.45,181.44,26.7]
[1755809652245,0.06,181.45,181.44,32.49353576]
[1755809652653,0.06,181.45,181.44,26.7]
[1755809653070,0.06,181.45,181.44,32.21146384]
[1755809653243,0.06,181.45,181.44,38.0049996]
[1755809653564,0.06,181.45,181.44,51.60059361]
[1755809654665,0.06,181.45,181.44,45.80705785]
[1755809654854,0.06,181.45,181.44,32.21146384]
[1755809656169,0.06,181.45,181.44,38.0049996]
[1755809656943,0.06,181.5,181.45,13.59559401]
[1755809657142,0.06,181.5,181.49,26.0]
[1755809657570,0.06,181.5,181.49,26.67]
[1755809657774,0.06,181.5,181.49,32.46353576]
[1755809658156,0.06,181.5,181.49,40.26559401]
[1755809658364,0.06,181.5,181.49,51.85266577]
[1755809658679,0.06,181.5,181.49,95.69266577]
[1755809658973,5.79353576,181.56,181.53,26.0]
[1755809659184,176.93,181.59,181.53,26.0]
[1755809659358,5.79353576,181.56,181.53,26.67]
[1755809659744,176.24,181.59,181.53,26.67]
[1755809659976,5.79353576,181.56,181.53,26.67]
[1755809660250,5.79353576,181.57,181.53,0.67]
[1755809660865,5.79353576,181.56,181.53,0.67]
[1755809661082,5.79353576,181.56,181.53,6.17873133]
[1755809662001,5.79353576,181.57,181.53,6.17873133]
[1755809662467,5.79353576,181.57,181.53,11.97226733]
[1755809663262,43.84,181.59,181.53,11.97226733]
[1755809663577,5.79353576,181.57,181.53,11.97226733]
[1755809664348,5.79353576,181.58,181.53,25.56786134]
[1755809664583,132.4,181.63,181.53,31.3613971]
[1755809664750,5.79353576,181.6,181.53,31.3613971]
[1755809665285,133.06,181.63,181.53,31.3613971]
[1755809665583,5.79353576,181.6,181.53,75.1813971]
[1755809666279,5.79353576,181.61,181.53,75.1813971]
[1755809666777,6.48353576,181.61,181.53,75.1813971]
[1755809666975,0.69,181.61,181.53,69.38786134]
[1755809667178,0.69,181.61,181.53,75.1813971]
[1755809667378,6.48353576,181.61,181.53,75.1813971]
[1755809667788,0.69,181.64,181.6,26.0]
[1755809668084,5.79353576,181.62,181.61,26.0]
[1755809668264,0.69,181.63,181.62,26.0]
[1755809668465,5.98353576,181.63,181.62,26.0]
[1755809668664,5.79353576,181.63,181.62,26.0]
[1755809669470,5.79353576,181.63,181.61,16.557662]
[1755809669673,5.79353576,181.62,181.61,16.557662]
[1755809670573,6.11353576,181.62,181.61,16.557662]
[1755809670887,0.32,181.62,181.61,16.557662]
[1755809671085,43.76,181.65,181.64,26.0]
[1755809671284,5.79353576,181.65,181.64,26.0]
[1755809671687,6.11353576,181.65,181.64,26.0]
[1755809672974,0.32,181.65,181.64,26.0]
[1755809673177,6.11353576,181.65,181.64,26.0]
[1755809675366,132.4,181.67,181.64,26.0]
[1755809675692,6.11353576,181.65,181.64,26.0]
[1755809676188,0.32,181.65,181.64,26.0]
[1755809676414,6.11353576,181.65,181.64,26.0]
[1755809678296,50.55353576,181.65,181.64,26.0]
[1755809678612,132.4,181.64,181.61,16.557662]
[1755809678887,11.58707152,181.62,181.57,0.03]
[1755809679090,5.79353576,181.62,181.61,26.0]
[1755809679290,6.11353576,181.62,181.58,16.557662]
[1755809679587,5.79353576,181.62,181.61,26.0]
[1755809679992,176.8,181.64,181.61,26.67]
[1755809680175,176.8,181.64,181.62,6.17600154]
[1755809680384,176.8,181.64,181.62,26.67]
[1755809680693,5.79353576,181.63,181.62,26.0]
[1755809680877,132.4,181.64,181.62,26.0]
[1755809681072,138.19353576,181.64,181.62,26.0]
[1755809681398,132.4,181.64,181.63,0.67]
[1755809682581,138.19353576,181.64,181.63,6.17569839]
[1755809685406,5.79353576,181.64,181.62,26.0]
[1755809685601,5.79353576,181.63,181.62,26.0]
[1755809685902,5.79353576,181.63,181.62,31.50594909]
[1755809686075,5.79353576,181.63,181.61,31.53625715]
[1755809686280,44.4,181.67,181.61,26.03]
[1755809686281,0.69,181.64,181.61,26.03]
[1755809686585,5.79353576,181.62,181.61,17.258576]
[1755809687009,6.45353576,181.62,181.61,16.588576]
[1755809687293,12.24707152,181.62,181.61,16.588576]
[1755809687684,12.24707152,181.62,181.61,0.03]
[1755809688100,44.36,181.64,181.61,26.03]
[1755809688395,11.58707152,181.62,181.61,26.03]
[1755809688700,12.24707152,181.62,181.61,26.03]
[1755809690302,11.58707152,181.62,181.61,26.03]
[1755809690502,44.36,181.64,181.61,26.03]
[1755809690671,5.79353576,181.62,181.61,0.03]
[1755809691071,5.79353576,181.62,181.61,5.53630471]
[1755809691267,44.44,181.66,181.64,26.0]
[1755809692499,5.79353576,181.65,181.64,26.0]
[1755809693377,5.79353576,181.65,181.64,26.68]
[1755809694270,5.79353576,181.65,181.64,26.0]
[1755809695303,5.79353576,181.65,181.64,26.68]
[1755809695797,5.79353576,181.65,181.64,0.68]
[1755809696197,44.44,181.66,181.64,0.68]
[1755809696499,5.79353576,181.65,181.64,26.0]
[1755809700088,44.44,181.66,181.65,26.0]
[1755809700290,186.99771074,181.66,181.61,0.03]
[1755809700511,5.79353576,181.62,181.61,0.03]
[1755809700686,55.92707152,181.62,181.61,0.03]
[1755809700886,56.58707152,181.62,181.61,0.03]
[1755809701103,50.13353576,181.62,181.61,26.03]
[1755809701408,50.13353576,181.62,181.61,26.71]
[1755809701409,44.34,181.62,181.61,26.71]
[1755809701586,5.79353576,181.62,181.61,43.268576]
[1755809701776,5.79353576,181.63,181.61,43.268576]
[1755809701980,5.79353576,181.63,181.62,0.68]
[1755809702380,5.79353576,181.63,181.61,42.588576]
[1755809702592,5.79353576,181.62,181.61,42.588576]
[1755809702996,0.06,181.65,181.61,43.268576]
[1755809703197,5.79353576,181.62,181.61,43.268576]
[1755809704105,5.79353576,181.62,181.61,42.588576]
[1755809704290,6.45353576,181.62,181.61,26.03]
[1755809704488,11.58707152,181.62,181.61,0.03]
[1755809704690,5.79353576,181.62,181.61,0.03]
[1755809705094,44.36,181.63,181.61,0.03]
[1755809705498,45.02,181.63,181.61,0.03]
[1755809706007,5.79353576,181.62,181.61,0.03]
[1755809706307,12.24707152,181.62,181.61,0.03]
[1755809706710,44.36,181.63,181.61,0.03]
[1755809706918,5.79353576,181.62,181.61,26.03]
[1755809707288,12.24707152,181.62,181.61,26.03]
[1755809707614,44.36,181.63,181.61,0.03]
[1755809707789,5.79353576,181.62,181.61,0.03]
[1755809708791,12.24707152,181.62,181.61,0.03]
[1755809709295,3.71570748,181.62,181.61,0.03]
[1755809709600,15.962779,181.62,181.61,0.03]
[1755809709785,148.362779,181.62,181.61,0.03]
[1755809710298,147.702779,181.62,181.61,0.03]
[1755809710611,9.50924324,181.62,181.61,0.03]
[1755809711109,44.36,181.63,181.61,26.71]
[1755809711300,9.50885727,181.62,181.61,26.71]
[1755809711506,5.79353576,181.62,181.61,26.71]
[1755809711694,5.79353576,181.62,181.61,26.03]
[1755809712017,132.4,181.64,181.62,26.0]
[1755809712214,44.72,181.63,181.62,26.0]
[1755809712529,132.4,181.64,181.62,26.0]
[1755809712825,132.4,181.64,181.63,0.68]
[1755809712985,138.19353576,181.64,181.63,0.68]
[1755809713186,138.19353576,181.64,181.62,26.0]
[1755809713414,5.79353576,181.63,181.62,26.68]
[1755809713721,5.79353576,181.63,181.62,26.0]
[1755809714205,50.71353576,181.63,181.62,26.0]
[1755809714393,60.88209986,181.63,181.61,0.03]
[1755809714598,11.58707152,181.62,181.61,26.03]
[1755809714998,15.9622405,181.62,181.61,0.03]
[1755809715233,15.9622405,181.62,181.57,0.03]
[1755809715525,177.96,181.61,181.58,26.0]
[1755809715695,177.3,181.61,181.58,26.0]
[1755809715897,177.3,181.61,181.58,26.68]
[1755809716308,177.3,181.61,181.58,26.0]
[1755809716486,177.3,181.61,181.59,0.68]
[1755809716800,132.4,181.61,181.6,0.68]
[1755809717190,0.06,181.65,181.63,26.0]
[1755809717191,44.94,181.64,181.63,26.0]
[1755809717393,48.65365044,181.64,181.63,26.7]
[1755809717595,44.94,181.64,181.63,26.7]
[1755809717795,50.73353576,181.64,181.63,26.7]
[1755809718604,44.94,181.64,181.63,26.7]
[1755809718806,5.79353576,181.64,181.63,26.7]
[1755809719018,5.79353576,181.64,181.63,43.256748]
[1755809719230,0.06,181.65,181.64,5.50539528]
[1755809719536,0.06,181.65,181.64,6.20539528]
[1755809719725,0.06,181.65,181.64,5.50539528]
[1755809719930,0.06,181.65,181.64,6.20539528]
[1755809720431,5.85353576,181.65,181.64,6.20539528]
[1755809720623,0.06,181.65,181.64,0.7]
[1755809720795,5.85353576,181.65,181.64,0.7]
[1755809721206,5.85353576,181.65,181.63,48.06239322]
[1755809721413,0.06,181.65,181.64,0.7]
[1755809721612,5.85353576,181.65,181.64,0.7]
[1755809723628,5.85353576,181.65,181.64,6.20539528]
[1755809723827,0.06,181.65,181.64,6.20539528]
[1755809724332,5.85353576,181.65,181.64,22.76031628]
[1755809724999,0.06,181.65,181.64,22.76031628]
[1755809725201,5.85353576,181.65,181.64,22.76031628]
[1755809726328,0.06,181.65,181.64,22.76031628]
[1755809726533,5.85353576,181.65,181.64,22.76031628]
[1755809726834,5.85353576,181.65,181.64,26.0]
[1755809727132,5.85353576,181.65,181.63,16.555835]
[1755809727301,5.79353576,181.64,181.63,16.555835]
[1755809727510,5.79353576,181.64,181.63,22.06144358]
[1755809727703,5.79353576,181.64,181.63,16.555835]
[1755809728008,5.79353576,181.64,181.63,17.255835]
[1755809728430,5.79353576,181.64,181.63,22.76153339]
[1755809728929,0.06,181.65,181.63,22.76153339]
[1755809729124,5.79353576,181.64,181.63,22.06153339]
[1755809729627,0.06,181.65,181.63,22.06153339]
[1755809729834,5.79353576,181.64,181.63,22.06153339]
[1755809730439,0.06,181.65,181.63,22.76153339]
[1755809730741,5.79353576,181.64,181.63,22.06153339]
[1755809731108,5.79353576,181.64,181.63,22.76153339]
[1755809731633,0.06,181.65,181.63,17.255835]
[1755809731934,5.79353576,181.64,181.63,16.555835]
[1755809732514,5.79353576,181.64,181.63,22.76147004]
[1755809733041,5.85353576,181.65,181.63,22.76147004]
[1755809733214,5.85353576,181.65,181.63,22.06147004]
[1755809733416,5.85353576,181.65,181.64,0.7]
[1755809734137,5.85353576,181.65,181.64,17.254921]
[1755809734646,5.85353576,181.65,181.64,22.76031628]
[1755809734942,0.06,181.65,181.64,22.76031628]
[1755809735126,5.85353576,181.65,181.64,22.76031628]
[1755809735323,5.85353576,181.65,181.64,48.76031628]
[1755809735639,5.85353576,181.65,181.64,22.76031628]
[1755809736017,5.85353576,181.65,181.64,48.76031628]
[1755809736335,0.06,181.65,181.64,22.76031628]
[1755809736533,5.85353576,181.65,181.64,48.76031628]
[1755809736836,5.85353576,181.65,181.64,22.76031628]
[1755809737219,0.06,181.65,181.64,22.76031628]
[1755809737411,5.85353576,181.65,181.64,48.76031628]
[1755809737835,0.06,181.65,181.64,22.76031628]
[1755809738015,5.85353576,181.65,181.64,48.76031628]
[1755809738218,5.85353576,181.65,181.64,22.76031628]